[Event "January 2 Late 2024"]
[Site "https://www.chess.com"]
[Date "2024.01.02"]
[Round "2"]
[White "Stojanovski, Sandi"]
[Black "Achuthan, Aryan"]
[Result "1/2-1/2"]
[Board "173"]
[TimeControl "180+1"]
[WhiteFideId "1403249"]
[BlackFideId "30982294"]
[WhiteElo "2506"]
[BlackElo "2315"]
[WhiteTeam "DEN"]
[BlackTeam "USA"]
[WhiteClock "0:00:15"]
[BlackClock "0:00:12"]

1. d4 {[%clk 0:02:59]}  d5 {[%clk 0:03:00]} 2. c4 {[%clk 0:02:59]}  e6 {[%clk 0:03:00]} 3. Nc3 {[%clk 0:02:59]}  Be7 {[%clk 0:03:00]} 4. cxd5 {[%clk 0:02:58]}  exd5 {[%clk 0:03:00]} 5. Nf3 {[%clk 0:02:57]}  c6 {[%clk 0:03:00]} 6. Qc2 {[%clk 0:02:55]}  Nf6 {[%clk 0:02:58]} 7. Bg5 {[%clk 0:02:54]}  O-O {[%clk 0:02:47]} 8. e3 {[%clk 0:02:54]}  Nbd7 {[%clk 0:02:39]} 9. Bd3 {[%clk 0:02:53]}  Re8 {[%clk 0:02:39]} 10. O-O {[%clk 0:02:53]}  Nf8 {[%clk 0:02:37]} 11. h3 {[%clk 0:02:50]}  g6 {[%clk 0:02:37]} 12. Rab1 {[%clk 0:02:33]}  a5 {[%clk 0:02:35]} 13. a3 {[%clk 0:02:32]}  Ne6 {[%clk 0:02:35]} 14. Bxf6 {[%clk 0:02:13]}  Bxf6 {[%clk 0:02:34]} 15. b4 {[%clk 0:02:13]}  axb4 {[%clk 0:02:35]} 16. axb4 {[%clk 0:02:13]}  Qd6 {[%clk 0:01:48]} 17. Rfd1 {[%clk 0:02:02]}  Bd7 {[%clk 0:01:26]} 18. b5 {[%clk 0:01:55]}  c5 {[%clk 0:01:26]} 19. dxc5 {[%clk 0:01:51]}  Qxc5 {[%clk 0:01:17]} 20. Ne2 {[%clk 0:01:49]}  Rec8 {[%clk 0:00:56]} 21. Qxc5 {[%clk 0:01:43]}  Rxc5 {[%clk 0:00:57]} 22. Ned4 {[%clk 0:01:20]}  b6 {[%clk 0:00:24]} 23. Nc6 {[%clk 0:00:38]}  Bxc6 {[%clk 0:00:19]} 24. bxc6 {[%clk 0:00:39]}  Rxc6 {[%clk 0:00:18]} 25. e4 {[%clk 0:00:40]}  Nc5 {[%clk 0:00:13]} 26. exd5 {[%clk 0:00:33]}  Rd6 {[%clk 0:00:13]} 27. Bb5 {[%clk 0:00:28]}  Rad8 {[%clk 0:00:09]} 28. Bc6 {[%clk 0:00:27]}  Ne4 {[%clk 0:00:09]} 29. Rxb6 {[%clk 0:00:18]}  Nc3 {[%clk 0:00:10]} 30. Rd3 {[%clk 0:00:16]}  Nxd5 {[%clk 0:00:10]} 31. Rb5 {[%clk 0:00:13]}  Ne7 {[%clk 0:00:09]} 32. Rxd6 {[%clk 0:00:12]}  Rxd6 {[%clk 0:00:10]} 33. Be4 {[%clk 0:00:12]}  Kg7 {[%clk 0:00:10]} 34. g3 {[%clk 0:00:12]}  h5 {[%clk 0:00:10]} 35. Kg2 {[%clk 0:00:12]}  Re6 {[%clk 0:00:09]} 36. Bd3 {[%clk 0:00:11]}  Rd6 {[%clk 0:00:09]} 37. Rb3 {[%clk 0:00:11]}  Nd5 {[%clk 0:00:09]} 38. Be4 {[%clk 0:00:11]}  Nc7 {[%clk 0:00:09]} 39. Bd3 {[%clk 0:00:11]}  Ne6 {[%clk 0:00:09]} 40. Bc4 {[%clk 0:00:10]}  Nd4 {[%clk 0:00:09]} 41. Nxd4 {[%clk 0:00:09]}  Rxd4 {[%clk 0:00:08]} 42. Bd3 {[%clk 0:00:08]}  Be7 {[%clk 0:00:07]} 43. h4 {[%clk 0:00:08]}  Bc5 {[%clk 0:00:08]} 44. Rc3 {[%clk 0:00:08]}  Bb4 {[%clk 0:00:06]} 45. Rb3 {[%clk 0:00:07]}  Bc5 {[%clk 0:00:07]} 46. Be2 {[%clk 0:00:07]}  Rd2 {[%clk 0:00:07]} 47. Bf3 {[%clk 0:00:07]}  Rxf2+ {[%clk 0:00:07]} 48. Kh3 {[%clk 0:00:07]}  Rd2 {[%clk 0:00:06]} 49. Rc3 {[%clk 0:00:07]}  Be7 {[%clk 0:00:05]} 50. Re3 {[%clk 0:00:06]}  Bd6 {[%clk 0:00:05]} 51. Re2 {[%clk 0:00:06]}  Rd3 {[%clk 0:00:05]} 52. Kg2 {[%clk 0:00:07]}  Rd4 {[%clk 0:00:06]} 53. Re4 {[%clk 0:00:06]}  Rxe4 {[%clk 0:00:06]} 54. Bxe4 {[%clk 0:00:06]}  Kf6 {[%clk 0:00:07]} 55. Kf3 {[%clk 0:00:06]}  Ke5 {[%clk 0:00:07]} 56. Bc2 {[%clk 0:00:07]}  Kf6 {[%clk 0:00:06]} 57. Bb3 {[%clk 0:00:08]}  Be5 {[%clk 0:00:06]} 58. Bc4 {[%clk 0:00:08]}  Bc3 {[%clk 0:00:07]} 59. g4 {[%clk 0:00:08]}  Be1 {[%clk 0:00:06]} 60. gxh5 {[%clk 0:00:07]}  gxh5 {[%clk 0:00:07]} 61. Kg2 {[%clk 0:00:07]}  Bxh4 {[%clk 0:00:07]} 62. Be2 {[%clk 0:00:07]}  Kg5 {[%clk 0:00:07]} 63. Kh3 {[%clk 0:00:08]}  Be1 {[%clk 0:00:08]} 64. Bc4 {[%clk 0:00:08]}  f6 {[%clk 0:00:08]} 65. Bd5 {[%clk 0:00:08]}  Bd2 {[%clk 0:00:08]} 66. Be6 {[%clk 0:00:08]}  Bf4 {[%clk 0:00:09]} 67. Bc8 {[%clk 0:00:08]}  Be5 {[%clk 0:00:10]} 68. Bd7 {[%clk 0:00:09]}  Bd6 {[%clk 0:00:08]} 69. Bc8 {[%clk 0:00:09]}  Bb4 {[%clk 0:00:07]} 70. Bd7 {[%clk 0:00:09]}  Be1 {[%clk 0:00:08]} 71. Bc8 {[%clk 0:00:09]}  Kf4 {[%clk 0:00:09]} 72. Bd7 {[%clk 0:00:09]}  Kf3 {[%clk 0:00:09]} 73. Be8 {[%clk 0:00:09]}  h4 {[%clk 0:00:09]} 74. Bd7 {[%clk 0:00:09]}  Bg3 {[%clk 0:00:09]} 75. Bc8 {[%clk 0:00:09]}  Ke4 {[%clk 0:00:09]} 76. Bd7 {[%clk 0:00:10]}  Ke5 {[%clk 0:00:10]} 77. Bg4 {[%clk 0:00:10]}  Kf4 {[%clk 0:00:10]} 78. Bc8 {[%clk 0:00:10]}  f5 {[%clk 0:00:09]} 79. Bxf5 {[%clk 0:00:10]}  Kxf5 {[%clk 0:00:10]} 80. Kg2 {[%clk 0:00:10]}  Kg4 {[%clk 0:00:11]} 81. Kh1 {[%clk 0:00:11]}  Kh3 {[%clk 0:00:12]} 82. Kg1 {[%clk 0:00:12]}  Bh2+ {[%clk 0:00:12]} 83. Kh1 {[%clk 0:00:12]}  Be5 {[%clk 0:00:13]} 84. Kg1 {[%clk 0:00:13]}  Bc7 {[%clk 0:00:13]} 85. Kh1 {[%clk 0:00:14]}  Kg3 {[%clk 0:00:13]} 86. Kg1 {[%clk 0:00:14]}  h3 {[%clk 0:00:14]} 87. Kh1 {[%clk 0:00:15]}  Bb6 {[%clk 0:00:12]} 1/2-1/2

[Event "January 2 Late 2024"]
[Site "https://www.chess.com"]
[Date "2024.01.02"]
[Round "2"]
[White "Kornyukov, Alexey"]
[Black "Goncalves, Davi Sulzbacher"]
[Result "0-1"]
[Board "176"]
[TimeControl "180+1"]
[WhiteFideId "4150457"]
[BlackFideId "2154510"]
[WhiteElo "2307"]
[BlackElo "2501"]
[WhiteTeam "RUS"]
[BlackTeam "BRA"]
[WhiteClock "0:00:00"]
[BlackClock "0:00:06"]

1. d4 {[%clk 0:03:00]}  Nf6 {[%clk 0:02:55]} 2. c4 {[%clk 0:03:00]}  c5 {[%clk 0:02:56]} 3. d5 {[%clk 0:03:00]}  e6 {[%clk 0:02:56]} 4. Nc3 {[%clk 0:03:00]}  exd5 {[%clk 0:02:57]} 5. cxd5 {[%clk 0:03:01]}  g6 {[%clk 0:02:57]} 6. e4 {[%clk 0:03:01]}  d6 {[%clk 0:02:57]} 7. f3 {[%clk 0:03:02]}  Bg7 {[%clk 0:02:58]} 8. Bg5 {[%clk 0:03:00]}  O-O {[%clk 0:02:55]} 9. Qd2 {[%clk 0:03:00]}  a6 {[%clk 0:02:53]} 10. a4 {[%clk 0:03:00]}  Re8 {[%clk 0:02:52]} 11. Ra3 {[%clk 0:02:59]}  Nbd7 {[%clk 0:02:47]} 12. Nh3 {[%clk 0:02:59]}  Ne5 {[%clk 0:02:43]} 13. Nf2 {[%clk 0:02:59]}  Qc7 {[%clk 0:02:40]} 14. Be2 {[%clk 0:02:59]}  Rb8 {[%clk 0:02:21]} 15. O-O {[%clk 0:02:57]}  h5 {[%clk 0:02:11]} 16. h3 {[%clk 0:02:56]}  Nh7 {[%clk 0:02:10]} 17. Be3 {[%clk 0:02:54]}  Nd7 {[%clk 0:01:55]} 18. Rb1 {[%clk 0:02:48]}  b6 {[%clk 0:01:46]} 19. b4 {[%clk 0:02:39]}  f5 {[%clk 0:01:33]} 20. bxc5 {[%clk 0:02:31]}  bxc5 {[%clk 0:01:28]} 21. Rab3 {[%clk 0:02:19]}  Rxb3 {[%clk 0:01:22]} 22. Rxb3 {[%clk 0:02:19]}  Ndf6 {[%clk 0:01:10]} 23. Bc4 {[%clk 0:02:04]}  fxe4 {[%clk 0:01:04]} 24. Ncxe4 {[%clk 0:02:02]}  Nxe4 {[%clk 0:01:03]} 25. Nxe4 {[%clk 0:02:01]}  Nf6 {[%clk 0:00:57]} 26. Ng5 {[%clk 0:01:36]}  Qe7 {[%clk 0:00:53]} 27. Ne6 {[%clk 0:01:25]}  Bxe6 {[%clk 0:00:14]} 28. dxe6 {[%clk 0:01:26]}  Rd8 {[%clk 0:00:12]} 29. Rd3 {[%clk 0:01:19]}  d5 {[%clk 0:00:04]} 30. Bxd5 {[%clk 0:01:15]}  Nxd5 {[%clk 0:00:04]} 31. Rxd5 {[%clk 0:01:15]}  Rb8 {[%clk 0:00:04]} 32. Bxc5 {[%clk 0:00:33]}  Rb1+ {[%clk 0:00:03]} 33. Kh2 {[%clk 0:00:30]}  Qxe6 {[%clk 0:00:03]} 34. f4 {[%clk 0:00:22]}  Kh7 {[%clk 0:00:03]} 35. Rd7 {[%clk 0:00:20]}  Qf5 {[%clk 0:00:03]} 36. Bd4 {[%clk 0:00:17]}  Qxd7 {[%clk 0:00:03]} 37. Qc2 {[%clk 0:00:15]}  Qxd4 {[%clk 0:00:04]} 38. Qxb1 {[%clk 0:00:15]}  Qxf4+ {[%clk 0:00:04]} 39. Kh1 {[%clk 0:00:15]}  Be5 {[%clk 0:00:05]} 40. Qb7+ {[%clk 0:00:15]}  Kh6 {[%clk 0:00:05]} 41. Kg1 {[%clk 0:00:14]}  Qe3+ {[%clk 0:00:06]} 42. Kf1 {[%clk 0:00:13]}  Qc1+ {[%clk 0:00:06]} 43. Ke2 {[%clk 0:00:10]}  Qc2+ {[%clk 0:00:06]} 44. Kf3 {[%clk 0:00:08]}  Qd3+ {[%clk 0:00:07]} 45. Kf2 {[%clk 0:00:08]}  Bd4+ {[%clk 0:00:07]} 46. Ke1 {[%clk 0:00:07]}  Qe3+ {[%clk 0:00:07]} 47. Kd1 {[%clk 0:00:07]}  Qg1+ {[%clk 0:00:07]} 48. Kd2 {[%clk 0:00:07]}  Qf2+ {[%clk 0:00:07]} 49. Kd3 {[%clk 0:00:06]}  Qe3+ {[%clk 0:00:07]} 50. Kc4 {[%clk 0:00:06]}  Qc3+ {[%clk 0:00:07]} 51. Kd5 {[%clk 0:00:06]}  Bg7 {[%clk 0:00:06]} 52. Ke6 {[%clk 0:00:05]}  Qe5+ {[%clk 0:00:06]} 53. Kf7 {[%clk 0:00:05]}  Qf6+ {[%clk 0:00:04]} 54. Ke8 {[%clk 0:00:04]}  Qf8+ {[%clk 0:00:04]} 55. Kd7 {[%clk 0:00:04]}  Qf7+ {[%clk 0:00:04]} 56. Kc6 {[%clk 0:00:05]}  Qxb7+ {[%clk 0:00:05]} 57. Kxb7 {[%clk 0:00:05]}  a5 {[%clk 0:00:06]} 58. Kb6 {[%clk 0:00:05]}  Bc3 {[%clk 0:00:06]} 59. Kc5 {[%clk 0:00:04]}  Kg5 {[%clk 0:00:06]} 60. Kc4 {[%clk 0:00:05]}  Bb4 {[%clk 0:00:06]} 61. Kd4 {[%clk 0:00:04]}  Kf4 {[%clk 0:00:06]} 62. g4 {[%clk 0:00:01]}  h4 {[%clk 0:00:06]} 63. g5 {[%clk 0:00:00]}  Kxg5 {[%clk 0:00:06]} 0-1

[Event "January 2 Late 2024"]
[Site "https://www.chess.com"]
[Date "2024.01.02"]
[Round "2"]
[White "Zampronha, Wladimir Camilo"]
[Black "Wartiovaara, Oliver"]
[Result "1-0"]
[Board "178"]
[TimeControl "180+1"]
[WhiteFideId "2103087"]
[BlackFideId "513024"]
[WhiteElo "2303"]
[BlackElo "2500"]
[WhiteTeam "BRA"]
[BlackTeam "FIN"]
[WhiteClock "0:00:05"]
[BlackClock "0:00:07"]

1. e4 {[%clk 0:03:00]}  e6 {[%clk 0:02:58]} 2. d4 {[%clk 0:03:00]}  d5 {[%clk 0:02:59]} 3. Nc3 {[%clk 0:03:00]}  Bb4 {[%clk 0:02:59]} 4. e5 {[%clk 0:03:00]}  c5 {[%clk 0:02:59]} 5. a3 {[%clk 0:03:00]}  Bxc3+ {[%clk 0:02:59]} 6. bxc3 {[%clk 0:03:01]}  Qc7 {[%clk 0:02:57]} 7. Qg4 {[%clk 0:03:00]}  Ne7 {[%clk 0:02:56]} 8. Qxg7 {[%clk 0:02:58]}  Rg8 {[%clk 0:02:57]} 9. Qxh7 {[%clk 0:02:59]}  cxd4 {[%clk 0:02:55]} 10. Ne2 {[%clk 0:02:59]}  dxc3 {[%clk 0:02:56]} 11. f4 {[%clk 0:02:59]}  Nbc6 {[%clk 0:02:56]} 12. Qd3 {[%clk 0:02:58]}  Bd7 {[%clk 0:02:56]} 13. Nxc3 {[%clk 0:02:58]}  O-O-O {[%clk 0:02:56]} 14. Nb5 {[%clk 0:02:43]}  Qb6 {[%clk 0:02:44]} 15. Rb1 {[%clk 0:02:30]}  Kb8 {[%clk 0:02:37]} 16. c3 {[%clk 0:02:14]}  Na5 {[%clk 0:02:11]} 17. Nd6 {[%clk 0:02:11]}  Nb3 {[%clk 0:02:10]} 18. Be3 {[%clk 0:01:55]}  d4 {[%clk 0:02:09]} 19. Bxd4 {[%clk 0:01:51]}  Bb5 {[%clk 0:01:17]} 20. Qxb5 {[%clk 0:01:08]}  Qxb5 {[%clk 0:01:11]} 21. Nxb5 {[%clk 0:01:01]}  Nxd4 {[%clk 0:01:07]} 22. cxd4 {[%clk 0:00:44]}  Nf5 {[%clk 0:00:48]} 23. Rd1 {[%clk 0:00:39]}  a6 {[%clk 0:00:40]} 24. Nd6 {[%clk 0:00:33]}  Nxd6 {[%clk 0:00:39]} 25. exd6 {[%clk 0:00:33]}  Rxd6 {[%clk 0:00:40]} 26. g3 {[%clk 0:00:32]}  Rgd8 {[%clk 0:00:37]} 27. Bg2 {[%clk 0:00:27]}  Rb6 {[%clk 0:00:37]} 28. O-O {[%clk 0:00:21]}  Rb2 {[%clk 0:00:18]} 29. d5 {[%clk 0:00:20]}  exd5 {[%clk 0:00:18]} 30. Bxd5 {[%clk 0:00:19]}  Re8 {[%clk 0:00:15]} 31. Rfe1 {[%clk 0:00:17]}  Rd8 {[%clk 0:00:16]} 32. Bxf7 {[%clk 0:00:16]}  Rc8 {[%clk 0:00:16]} 33. Rc1 {[%clk 0:00:15]}  Rd8 {[%clk 0:00:16]} 34. Red1 {[%clk 0:00:15]}  Rf8 {[%clk 0:00:15]} 35. Bd5 {[%clk 0:00:14]}  Re8 {[%clk 0:00:09]} 36. Bf3 {[%clk 0:00:12]}  Re7 {[%clk 0:00:09]} 37. h4 {[%clk 0:00:12]}  Rg7 {[%clk 0:00:08]} 38. g4 {[%clk 0:00:11]}  Rf7 {[%clk 0:00:08]} 39. f5 {[%clk 0:00:11]}  Rh7 {[%clk 0:00:09]} 40. h5 {[%clk 0:00:11]}  Rg7 {[%clk 0:00:10]} 41. Rf1 {[%clk 0:00:09]}  Rb3 {[%clk 0:00:10]} 42. Rf2 {[%clk 0:00:09]}  Re7 {[%clk 0:00:10]} 43. h6 {[%clk 0:00:08]}  Rxa3 {[%clk 0:00:10]} 44. g5 {[%clk 0:00:07]}  Ra5 {[%clk 0:00:10]} 45. g6 {[%clk 0:00:07]}  Rxf5 {[%clk 0:00:09]} 46. g7 {[%clk 0:00:06]}  Rg5+ {[%clk 0:00:10]} 47. Rg2 {[%clk 0:00:06]}  Rxg2+ {[%clk 0:00:07]} 48. Kxg2 {[%clk 0:00:05]} 1-0

[Event "January 2 Late 2024"]
[Site "https://www.chess.com"]
[Date "2024.01.02"]
[Round "2"]
[White "Makaraci, Tunahan"]
[Black "Skurikhin, Dmitrij"]
[Result "1-0"]
[Board "179"]
[TimeControl "180+1"]
[WhiteFideId "6356559"]
[BlackFideId "4161297"]
[WhiteElo "2500"]
[BlackElo "2296"]
[WhiteTeam "TUR"]
[BlackTeam "RUS"]
[WhiteClock "0:00:24"]
[BlackClock "0:00:12"]

1. e4 {[%clk 0:03:00]}  c6 {[%clk 0:02:58]} 2. d4 {[%clk 0:03:00]}  d5 {[%clk 0:02:59]} 3. exd5 {[%clk 0:03:01]}  cxd5 {[%clk 0:02:58]} 4. c4 {[%clk 0:03:01]}  Nf6 {[%clk 0:02:58]} 5. Nc3 {[%clk 0:03:02]}  e6 {[%clk 0:02:58]} 6. Nf3 {[%clk 0:03:02]}  Nc6 {[%clk 0:02:57]} 7. c5 {[%clk 0:03:00]}  Be7 {[%clk 0:02:54]} 8. Bg5 {[%clk 0:02:59]}  O-O {[%clk 0:02:53]} 9. Bb5 {[%clk 0:02:59]}  Bd7 {[%clk 0:02:50]} 10. O-O {[%clk 0:02:58]}  Ne4 {[%clk 0:02:46]} 11. Bxe7 {[%clk 0:02:58]}  Qxe7 {[%clk 0:02:40]} 12. Rc1 {[%clk 0:02:53]}  f5 {[%clk 0:02:37]} 13. Bxc6 {[%clk 0:02:48]}  Bxc6 {[%clk 0:02:24]} 14. Ne5 {[%clk 0:02:48]}  Be8 {[%clk 0:02:23]} 15. f3 {[%clk 0:02:36]}  Nf6 {[%clk 0:02:17]} 16. Qd2 {[%clk 0:02:32]}  b6 {[%clk 0:02:12]} 17. b4 {[%clk 0:02:31]}  a5 {[%clk 0:02:10]} 18. a3 {[%clk 0:02:31]}  axb4 {[%clk 0:02:10]} 19. axb4 {[%clk 0:02:31]}  bxc5 {[%clk 0:02:08]} 20. bxc5 {[%clk 0:02:31]}  Nd7 {[%clk 0:02:04]} 21. Rfe1 {[%clk 0:02:21]}  Nxe5 {[%clk 0:01:50]} 22. Rxe5 {[%clk 0:02:20]}  Bf7 {[%clk 0:01:49]} 23. Nxd5 {[%clk 0:02:14]}  Qd8 {[%clk 0:01:47]} 24. Nb6 {[%clk 0:02:11]}  Ra3 {[%clk 0:01:42]} 25. Re3 {[%clk 0:02:02]}  Qg5 {[%clk 0:01:36]} 26. Nc4 {[%clk 0:01:54]}  Ra4 {[%clk 0:01:30]} 27. Nd6 {[%clk 0:01:44]}  Rfa8 {[%clk 0:01:26]} 28. Rb1 {[%clk 0:01:32]}  Ra2 {[%clk 0:01:23]} 29. Qxa2 {[%clk 0:01:12]}  Qxe3+ {[%clk 0:01:09]} 30. Qf2 {[%clk 0:01:11]}  Qd3 {[%clk 0:01:07]} 31. Re1 {[%clk 0:01:09]}  Ra4 {[%clk 0:00:58]} 32. Qh4 {[%clk 0:00:37]}  Qxd4+ {[%clk 0:00:54]} 33. Qxd4 {[%clk 0:00:37]}  Rxd4 {[%clk 0:00:54]} 34. Ra1 {[%clk 0:00:33]}  g5 {[%clk 0:00:29]} 35. Ra8+ {[%clk 0:00:31]}  Kg7 {[%clk 0:00:25]} 36. Ra7 {[%clk 0:00:31]}  Rd1+ {[%clk 0:00:23]} 37. Kf2 {[%clk 0:00:31]}  Rc1 {[%clk 0:00:23]} 38. Rxf7+ {[%clk 0:00:29]}  Kg6 {[%clk 0:00:23]} 39. Rc7 {[%clk 0:00:29]}  e5 {[%clk 0:00:23]} 40. c6 {[%clk 0:00:27]}  Kf6 {[%clk 0:00:22]} 41. Nb5 {[%clk 0:00:25]}  Ke6 {[%clk 0:00:21]} 42. Rc8 {[%clk 0:00:24]}  f4 {[%clk 0:00:19]} 43. c7 {[%clk 0:00:24]}  Rc2+ {[%clk 0:00:19]} 44. Ke1 {[%clk 0:00:24]}  Kd7 {[%clk 0:00:18]} 45. Rd8+ {[%clk 0:00:24]}  Ke7 {[%clk 0:00:12]} 46. c8=Q {[%clk 0:00:24]} 1-0

[Event "January 2 Late 2024"]
[Site "https://www.chess.com"]
[Date "2024.01.02"]
[Round "2"]
[White "Nechitaylo, Nikita"]
[Black "Perez Rodriguez, Jennifer"]
[Result "1-0"]
[Board "182"]
[TimeControl "180+1"]
[WhiteFideId "34138161"]
[BlackFideId "3507831"]
[WhiteElo "2291"]
[BlackElo "2496"]
[WhiteTeam "UKR"]
[BlackTeam "PAR"]
[WhiteClock "0:01:16"]
[BlackClock "0:02:03"]

1. d4 {[%clk 0:03:00]}  d5 {[%clk 0:02:59]} 2. c4 {[%clk 0:03:01]}  c6 {[%clk 0:02:59]} 3. cxd5 {[%clk 0:03:01]}  cxd5 {[%clk 0:02:56]} 4. Bf4 {[%clk 0:03:01]}  Nc6 {[%clk 0:02:55]} 5. e3 {[%clk 0:03:02]}  Nf6 {[%clk 0:02:51]} 6. Nc3 {[%clk 0:03:03]}  a6 {[%clk 0:02:48]} 7. Be2 {[%clk 0:03:02]}  Bf5 {[%clk 0:02:42]} 8. g4 {[%clk 0:03:03]}  Be4 {[%clk 0:02:38]} 9. f3 {[%clk 0:02:42]}  Bg6 {[%clk 0:02:37]} 10. Qb3 {[%clk 0:02:22]}  Qd7 {[%clk 0:02:31]} 11. g5 {[%clk 0:01:54]}  Nh5 {[%clk 0:02:27]} 12. Nxd5 {[%clk 0:01:44]}  Nxd4 {[%clk 0:02:23]} 13. exd4 {[%clk 0:01:34]}  Nxf4 {[%clk 0:02:19]} 14. Nxf4 {[%clk 0:01:35]}  Qxd4 {[%clk 0:02:19]} 15. Rd1 {[%clk 0:01:19]}  Qxf4 {[%clk 0:02:03]} 16. Qb5+ {[%clk 0:01:16]} 1-0

[Event "January 2 Late 2024"]
[Site "https://www.chess.com"]
[Date "2024.01.02"]
[Round "2"]
[White "Tao, Sihan"]
[Black "Gonzalez Zharikov, Andrey"]
[Result "1-0"]
[Board "183"]
[TimeControl "180+1"]
[WhiteFideId "30982677"]
[BlackFideId "5145287"]
[WhiteElo "2496"]
[BlackElo "2290"]
[WhiteTeam "USA"]
[BlackTeam "MEX"]
[WhiteClock "0:01:34"]
[BlackClock "0:00:12"]

1. e4 {[%clk 0:03:00]}  c6 {[%clk 0:02:58]} 2. Nc3 {[%clk 0:02:59]}  d5 {[%clk 0:02:58]} 3. Nf3 {[%clk 0:03:00]}  dxe4 {[%clk 0:02:57]} 4. Nxe4 {[%clk 0:03:01]}  Nf6 {[%clk 0:02:56]} 5. Qe2 {[%clk 0:03:01]}  Nxe4 {[%clk 0:02:55]} 6. Qxe4 {[%clk 0:03:02]}  Nd7 {[%clk 0:02:56]} 7. Bc4 {[%clk 0:03:03]}  Nf6 {[%clk 0:02:55]} 8. Ne5 {[%clk 0:03:03]}  e6 {[%clk 0:02:55]} 9. Qe2 {[%clk 0:03:04]}  Qc7 {[%clk 0:02:50]} 10. d4 {[%clk 0:03:02]}  Bd6 {[%clk 0:02:49]} 11. O-O {[%clk 0:03:01]}  O-O {[%clk 0:02:45]} 12. Nf3 {[%clk 0:03:01]}  b6 {[%clk 0:02:42]} 13. c3 {[%clk 0:03:00]}  Bb7 {[%clk 0:02:39]} 14. Bg5 {[%clk 0:03:00]}  Nd5 {[%clk 0:02:38]} 15. Bd3 {[%clk 0:02:42]}  Nf4 {[%clk 0:02:19]} 16. Bxf4 {[%clk 0:02:41]}  Bxf4 {[%clk 0:02:19]} 17. Ne5 {[%clk 0:02:41]}  g6 {[%clk 0:01:36]} 18. Rad1 {[%clk 0:02:31]}  Bh6 {[%clk 0:01:33]} 19. Be4 {[%clk 0:02:24]}  Bg7 {[%clk 0:01:19]} 20. Bf3 {[%clk 0:02:16]}  Rac8 {[%clk 0:01:14]} 21. Nc4 {[%clk 0:02:07]}  Rfd8 {[%clk 0:01:13]} 22. Ne3 {[%clk 0:02:05]}  Qb8 {[%clk 0:01:06]} 23. Rfe1 {[%clk 0:02:02]}  Qa8 {[%clk 0:00:58]} 24. Qc4 {[%clk 0:01:54]}  a5 {[%clk 0:00:47]} 25. a4 {[%clk 0:01:44]}  Qa6 {[%clk 0:00:41]} 26. Qxa6 {[%clk 0:01:39]}  Bxa6 {[%clk 0:00:41]} 27. Be2 {[%clk 0:01:40]}  Bb7 {[%clk 0:00:41]} 28. Nc4 {[%clk 0:01:39]}  Rb8 {[%clk 0:00:21]} 29. Nxb6 {[%clk 0:01:38]}  Bc8 {[%clk 0:00:19]} 30. Nc4 {[%clk 0:01:36]}  Ba6 {[%clk 0:00:16]} 31. Nxa5 {[%clk 0:01:34]}  Bb7 {[%clk 0:00:17]} 32. Nxb7 {[%clk 0:01:33]}  Rxb7 {[%clk 0:00:12]} 33. b4 {[%clk 0:01:34]} 1-0

[Event "January 2 Late 2024"]
[Site "https://www.chess.com"]
[Date "2024.01.02"]
[Round "2"]
[White "Minina, Veronika"]
[Black "Hernando Rodrigo, Julio Antonio"]
[Result "0-1"]
[Board "187"]
[TimeControl "180+1"]
[WhiteFideId "4174780"]
[BlackFideId "2208350"]
[WhiteElo "2284"]
[BlackElo "2493"]
[WhiteTeam "RUS"]
[BlackTeam "ESP"]
[WhiteClock "0:00:02"]
[BlackClock "0:01:07"]

1. Nf3 {[%clk 0:03:00]}  g6 {[%clk 0:02:58]} 2. g3 {[%clk 0:03:00]}  Bg7 {[%clk 0:02:59]} 3. Bg2 {[%clk 0:03:01]}  e5 {[%clk 0:02:59]} 4. d3 {[%clk 0:03:00]}  Nc6 {[%clk 0:02:59]} 5. O-O {[%clk 0:03:00]}  Nge7 {[%clk 0:02:58]} 6. c4 {[%clk 0:03:01]}  O-O {[%clk 0:02:57]} 7. Nc3 {[%clk 0:03:01]}  d6 {[%clk 0:02:57]} 8. Rb1 {[%clk 0:03:01]}  h6 {[%clk 0:02:57]} 9. b4 {[%clk 0:03:01]}  Be6 {[%clk 0:02:48]} 10. b5 {[%clk 0:02:54]}  Nd4 {[%clk 0:02:45]} 11. Bd2 {[%clk 0:02:37]}  c5 {[%clk 0:02:40]} 12. bxc6 {[%clk 0:02:38]}  bxc6 {[%clk 0:02:35]} 13. Rb7 {[%clk 0:02:23]}  Nef5 {[%clk 0:02:23]} 14. Qc1 {[%clk 0:02:09]}  Qc8 {[%clk 0:02:16]} 15. Qb1 {[%clk 0:01:49]}  Nxf3+ {[%clk 0:02:07]} 16. Bxf3 {[%clk 0:01:49]}  Nd4 {[%clk 0:02:07]} 17. Bg2 {[%clk 0:01:48]}  Bh3 {[%clk 0:01:58]} 18. e3 {[%clk 0:01:31]}  Bxg2 {[%clk 0:01:57]} 19. Kxg2 {[%clk 0:01:32]}  Ne6 {[%clk 0:01:56]} 20. Ne4 {[%clk 0:01:30]}  Rd8 {[%clk 0:01:53]} 21. Qb4 {[%clk 0:01:05]}  d5 {[%clk 0:01:45]} 22. Nd6 {[%clk 0:00:58]}  Rxd6 {[%clk 0:01:43]} 23. Rb1 {[%clk 0:00:29]}  Rd7 {[%clk 0:01:42]} 24. cxd5 {[%clk 0:00:26]}  cxd5 {[%clk 0:01:39]} 25. Rb5 {[%clk 0:00:17]}  Qc2 {[%clk 0:01:25]} 26. Rc1 {[%clk 0:00:16]}  Qxd3 {[%clk 0:01:24]} 27. Rb8+ {[%clk 0:00:15]}  Rxb8 {[%clk 0:01:23]} 28. Qxb8+ {[%clk 0:00:16]}  Rd8 {[%clk 0:01:22]} 29. Qb4 {[%clk 0:00:14]}  Qe4+ {[%clk 0:01:19]} 30. Qxe4 {[%clk 0:00:13]}  dxe4 {[%clk 0:01:20]} 31. Ba5 {[%clk 0:00:14]}  Rd7 {[%clk 0:01:17]} 32. Rc8+ {[%clk 0:00:12]}  Kh7 {[%clk 0:01:16]} 33. h4 {[%clk 0:00:11]}  Bf8 {[%clk 0:01:15]} 34. g4 {[%clk 0:00:08]}  Be7 {[%clk 0:01:14]} 35. h5 {[%clk 0:00:08]}  gxh5 {[%clk 0:01:13]} 36. gxh5 {[%clk 0:00:09]}  Bd8 {[%clk 0:01:12]} 37. Bc3 {[%clk 0:00:02]}  Rc7 {[%clk 0:01:07]} 0-1

[Event "January 2 Late 2024"]
[Site "https://www.chess.com"]
[Date "2024.01.02"]
[Round "2"]
[White "Garcia Almaguer, Juan Manuel"]
[Black "Nithyalakshmi, Sivanesan"]
[Result "1-0"]
[Board "189"]
[TimeControl "180+1"]
[WhiteFideId "5110491"]
[BlackFideId "5706955"]
[WhiteElo "2490"]
[BlackElo "2278"]
[WhiteTeam "MEX"]
[BlackTeam "MAS"]
[WhiteClock "0:00:36"]
[BlackClock "0:00:05"]

1. e4 {[%clk 0:03:00]}  e6 {[%clk 0:02:59]} 2. d4 {[%clk 0:03:00]}  d5 {[%clk 0:02:58]} 3. e5 {[%clk 0:03:00]}  Bd7 {[%clk 0:02:58]} 4. f4 {[%clk 0:02:52]}  Nh6 {[%clk 0:02:54]} 5. Nf3 {[%clk 0:02:51]}  Nf5 {[%clk 0:02:51]} 6. Bd3 {[%clk 0:02:51]}  Nh4 {[%clk 0:02:47]} 7. O-O {[%clk 0:02:49]}  Nxf3+ {[%clk 0:02:38]} 8. Qxf3 {[%clk 0:02:50]}  c5 {[%clk 0:02:32]} 9. f5 {[%clk 0:02:48]}  cxd4 {[%clk 0:02:23]} 10. fxe6 {[%clk 0:02:26]}  Bxe6 {[%clk 0:02:21]} 11. Na3 {[%clk 0:02:16]}  Nc6 {[%clk 0:01:57]} 12. Qg3 {[%clk 0:02:14]}  a6 {[%clk 0:01:04]} 13. Kh1 {[%clk 0:01:35]}  Qd7 {[%clk 0:00:53]} 14. Bg5 {[%clk 0:01:22]}  h6 {[%clk 0:00:48]} 15. Qh4 {[%clk 0:01:16]}  Be7 {[%clk 0:00:35]} 16. Bxe7 {[%clk 0:01:13]}  Qxe7 {[%clk 0:00:34]} 17. Qf4 {[%clk 0:01:06]}  Kd8 {[%clk 0:00:29]} 18. Rae1 {[%clk 0:01:04]}  Kc7 {[%clk 0:00:27]} 19. Nb1 {[%clk 0:01:01]}  g5 {[%clk 0:00:27]} 20. Qf2 {[%clk 0:00:58]}  h5 {[%clk 0:00:25]} 21. Nd2 {[%clk 0:00:58]}  g4 {[%clk 0:00:20]} 22. Nb3 {[%clk 0:00:58]}  h4 {[%clk 0:00:19]} 23. Nxd4 {[%clk 0:00:54]}  Nxd4 {[%clk 0:00:19]} 24. Qxd4 {[%clk 0:00:54]}  Rag8 {[%clk 0:00:19]} 25. c4 {[%clk 0:00:51]}  dxc4 {[%clk 0:00:16]} 26. Bxc4 {[%clk 0:00:43]}  g3 {[%clk 0:00:10]} 27. Bxe6 {[%clk 0:00:40]}  Qxe6 {[%clk 0:00:10]} 28. Rf6 {[%clk 0:00:38]}  Qe7 {[%clk 0:00:06]} 29. Qc4+ {[%clk 0:00:36]}  Kb8 {[%clk 0:00:06]} 30. Rxf7 {[%clk 0:00:36]}  Qg5 {[%clk 0:00:04]} 31. Qc7+ {[%clk 0:00:35]}  Ka8 {[%clk 0:00:05]} 32. Qxb7# {[%clk 0:00:36]} 1-0